fUSD/lending_fUSD_20250128
["ID","MTS","AMOUNT","RATE_DAILY","PERIOD"]
[350713366,1738077065980,-782.09,0.0001863,2]
[350713367,1738077065990,-1000.0,0.0001863,2]
[350713368,1738077066001,-782.09,0.0001863,2]
[350713369,1738077066011,-1787.34,0.0001863,2]
[350713370,1738077066022,-1000.0,0.0001863,2]
[350713371,1738077066035,-782.09,0.0001863,2]
[350713372,1738077066053,-4535.19,0.0001863,2]
[350713373,1738077066065,-1787.34,0.0001863,2]
[350713374,1738077066075,-4535.19,0.0001863,2]
[350713375,1738077066090,-1787.54593548,0.0001863,2]
[350713376,1738077066102,-782.09,0.0001863,2]
[350713377,1738077066112,-503.53164141,0.0001863,2]
[350713378,1738077066124,-4535.19,0.0001863,2]
[350713379,1738077066135,-782.09,0.0001863,2]
[350713380,1738077066145,-4535.19,0.0001863,2]
[350713381,1738077066159,-500.0,0.0001863,2]
[350713382,1738077066170,-1000.0,0.0001863,2]
[350713383,1738077066181,-4535.19,0.0001863,2]
[350713384,1738077066340,-4535.19,0.0001863,2]
[350713385,1738077066358,-4535.19,0.0001863,2]
[350713386,1738077066369,-1510.36,0.0001863,2]
[350713387,1738077066381,-782.09,0.0001863,2]
[350713388,1738077066393,-1510.36,0.0001863,2]
[350713389,1738077066404,-782.09,0.0001863,2]
[350713390,1738077066415,-1000.0,0.0001863,2]
[350713391,1738077066426,-4535.24237117,0.0001863,2]
[350713392,1738077066437,-1510.36,0.0001863,2]
[350713393,1738077066448,-782.09,0.0001863,2]
[350713394,1738077066461,-1000.0,0.0001863,2]
[350713395,1738077066473,-1510.36,0.0001863,2]
[350713396,1738077066484,-782.09,0.0001863,2]
[350713397,1738077066495,-1510.36,0.0001863,2]
[350713398,1738077066507,-1000.0,0.0001863,2]
[350713399,1738077066519,-782.09,0.0001863,2]
[350713400,1738077066530,-500.0,0.0001863,2]
[350713401,1738077066541,-1510.36,0.0001863,2]
[350713402,1738077066553,-500.0,0.0001863,2]
[350713403,1738077066564,-782.09,0.0001863,2]
[350713404,1738077066576,-500.0,0.0001863,2]
[350713405,1738077066588,-1510.36,0.0001863,2]
[350713406,1738077066598,-782.09,0.0001863,2]
[350713407,1738077066610,-3421.12,0.0001863,2]
[350713408,1738077066621,-1510.36,0.0001863,2]
[350713409,1738077066632,-1000.0,0.0001863,2]
[350713410,1738077066643,-3421.12,0.0001863,2]
[350713411,1738077066654,-1510.36,0.0001863,2]
[350713412,1738077066665,-782.09,0.0001863,2]
[350713413,1738077066677,-1000.0,0.0001863,2]
[350713414,1738077066689,-1510.36,0.0001863,2]
[350713415,1738077066700,-782.09,0.0001863,2]
[350713416,1738077066714,-500.0,0.0001863,2]
[350713417,1738077066725,-1000.0,0.0001863,2]
[350713418,1738077066736,-3421.12,0.0001863,2]
[350713419,1738077066746,-500.0,0.0001863,2]
[350713420,1738077066757,-1510.36,0.0001863,2]
[350713421,1738077066768,-782.32,0.0001863,2]
[350713422,1738077066781,-1000.0,0.0001863,2]
[350713423,1738077066793,-3421.12,0.0001863,2]
[350713424,1738077066803,-1510.36,0.0001863,2]
[350713425,1738077066814,-672.7,0.0001863,2]
[350713426,1738077066826,-500.0,0.0001863,2]
[350713427,1738077066837,-302.28023051,0.0001863,2]
[350713428,1738077066848,-3421.12,0.0001863,2]
[350713429,1738077066860,-672.7,0.0001863,2]
[350713430,1738077066871,-3421.12,0.0001863,2]
[350713431,1738077066885,-500.0,0.0001863,2]
[350713432,1738077066896,-3421.12,0.0001863,2]
[350713433,1738077066908,-672.7,0.0001863,2]
[350713434,1738077066919,-500.0,0.0001863,2]
[350713435,1738077066930,-672.7,0.0001863,2]
[350713436,1738077066941,-3421.12,0.0001863,2]
[350713437,1738077066952,-672.7,0.0001863,2]
[350713438,1738077066965,-500.0,0.0001863,2]
[350713439,1738077066977,-3421.12,0.0001863,2]
[350713440,1738077066988,-1510.36,0.0001863,2]
[350713441,1738077066999,-672.7,0.0001863,2]
[350713442,1738077067010,-12864.06,0.0001863,2]
[350713443,1738077067021,-500.0,0.0001863,2]
[350713444,1738077067033,-672.7,0.0001863,2]
[350713445,1738077067057,-1510.36,0.0001863,2]
[350713446,1738077067074,-3421.12,0.0001863,2]
[350713447,1738077067091,-12864.06,0.0001863,2]
[350713448,1738077067102,-672.7,0.0001863,2]
[350713449,1738077067113,-500.0,0.0001863,2]
[350713450,1738077067126,-3421.12,0.0001863,2]
[350713451,1738077067137,-3574.89,0.0001863,2]
[350713452,1738077067147,-1510.36,0.0001863,2]
[350713453,1738077067158,-12864.06,0.0001863,2]
[350713454,1738077067169,-500.0,0.0001863,2]
[350713455,1738077067180,-672.7,0.0001863,2]
[350713456,1738077067191,-3574.89,0.0001863,2]
[350713457,1738077067201,-1510.36,0.0001863,2]
[350713458,1738077067217,-672.7,0.0001863,2]
[350713459,1738077067227,-3421.12,0.0001863,2]
[350713460,1738077067237,-500.0,0.0001863,2]
[350713461,1738077067248,-4056.43,0.0001863,2]
[350713462,1738077067259,-3574.89,0.0001863,2]
[350713463,1738077067270,-1510.36,0.0001863,2]
[350713464,1738077067280,-672.7,0.0001863,2]
[350713465,1738077067291,-3421.12,0.0001863,2]
[350713466,1738077067301,-1119.48,0.0001863,2]
[350713467,1738077067312,-3574.89,0.0001863,2]
[350713468,1738077067324,-4056.43,0.0001863,2]
[350713469,1738077067335,-500.0,0.0001863,2]
[350713470,1738077067345,-500.0,0.0001863,2]
[350713471,1738077067356,-1083.88,0.0001863,2]
[350713472,1738077067367,-672.7,0.0001863,2]
[350713473,1738077067377,-3421.12,0.0001863,2]
[350713474,1738077067388,-1119.48,0.0001863,2]
[350713475,1738077067400,-3574.89,0.0001863,2]
[350713476,1738077067412,-672.7,0.0001863,2]
[350713477,1738077067423,-500.0,0.0001863,2]
[350713478,1738077067435,-1510.36,0.0001863,2]
[350713479,1738077067446,-1083.88,0.0001863,2]
[350713480,1738077067458,-4056.43,0.0001863,2]
[350713481,1738077067470,-500.0,0.0001863,2]
[350713482,1738077067481,-12864.06,0.0001863,2]
[350713483,1738077067493,-500.0,0.0001863,2]
[350713484,1738077067504,-672.7,0.0001863,2]
[350713485,1738077067515,-1119.48,0.0001863,2]
[350713486,1738077067527,-3421.12,0.0001863,2]
[350713487,1738077067538,-500.0,0.0001863,2]
[350713488,1738077067549,-3574.89,0.0001863,2]
[350713489,1738077067560,-1083.88,0.0001863,2]
[350713490,1738077067571,-1510.36,0.0001863,2]
[350713491,1738077067583,-12864.06,0.0001863,2]
[350713492,1738077067594,-500.0,0.0001863,2]
[350713493,1738077067605,-672.7,0.0001863,2]
[350713494,1738077067615,-3421.12,0.0001863,2]
[350713495,1738077067626,-500.0,0.0001863,2]
[350713496,1738077067637,-3574.89,0.0001863,2]
[350713497,1738077067647,-4056.43,0.0001863,2]
[350713498,1738077067658,-500.0,0.0001863,2]
[350713499,1738077067668,-1083.88,0.0001863,2]
[350713500,1738077067680,-1119.48,0.0001863,2]
[350713501,1738077067691,-672.7,0.0001863,2]
[350713502,1738077067702,-12864.06,0.0001863,2]
[350713503,1738077067715,-157.91460642,0.0001863,2]
[350713504,1738077067726,-3574.89,0.0001863,2]
[350713505,1738077067736,-672.7,0.0001863,2]
[350713506,1738077067747,-3421.12,0.0001863,2]
[350713507,1738077067757,-1510.36,0.0001863,2]
[350713508,1738077067768,-500.0,0.0001863,2]
[350713509,1738077067780,-4056.43,0.0001863,2]
[350713510,1738077067790,-1083.88,0.0001863,2]
[350713511,1738077067801,-500.0,0.0001863,2]
[350713512,1738077067812,-12864.06,0.0001863,2]
[350713513,1738077067823,-3421.12,0.0001863,2]
[350713514,1738077067834,-672.7,0.0001863,2]
[350713515,1738077067844,-1510.36,0.0001863,2]
[350713516,1738077067854,-1119.48,0.0001863,2]
[350713517,1738077067865,-4056.43,0.0001863,2]
[350713518,1738077067875,-500.0,0.0001863,2]
[350713519,1738077067884,-12864.06,0.0001863,2]
[350713520,1738077067895,-672.7,0.0001863,2]
[350713521,1738077067905,-3574.89,0.0001863,2]
[350713522,1738077067915,-1510.36,0.0001863,2]
[350713523,1738077067926,-3421.12,0.0001863,2]
[350713524,1738077067936,-500.0,0.0001863,2]
[350713525,1738077067946,-1119.48,0.0001863,2]
[350713526,1738077067957,-4056.43,0.0001863,2]
[350713527,1738077067968,-1083.88,0.0001863,2]
[350713528,1738077067978,-500.0,0.0001863,2]
[350713529,1738077067988,-12864.06,0.0001863,2]
[350713530,1738077067998,-672.7,0.0001863,2]
[350713531,1738077068009,-3574.89,0.0001863,2]
[350713532,1738077068019,-1510.36,0.0001863,2]
[350713533,1738077068030,-515.35870534,0.0001863,2]
[350713534,1738077068045,-3421.12,0.0001863,2]
[350713535,1738077068055,-1119.48,0.0001863,2]
[350713536,1738077068065,-4056.43,0.0001863,2]
[350713537,1738077068077,-12864.06,0.0001863,2]
[350713538,1738077068088,-1083.88,0.0001863,2]
[350713539,1738077068098,-672.7,0.0001863,2]
[350713540,1738077068108,-3574.89,0.0001863,2]
[350713541,1738077068121,-1510.54416443,0.0001863,2]
[350713542,1738077068132,-3421.12,0.0001863,2]
[350713543,1738077068142,-1119.48,0.0001863,2]
[350713544,1738077068153,-672.7,0.0001863,2]
[350713545,1738077068164,-4056.43,0.0001863,2]
[350713546,1738077068174,-1083.88,0.0001863,2]
[350713547,1738077068185,-500.0,0.0001863,2]
[350713548,1738077068195,-3574.89,0.0001863,2]
[350713549,1738077068206,-672.7,0.0001863,2]
[350713550,1738077068218,-3421.12,0.0001863,2]
[350713551,1738077068229,-1119.48,0.0001863,2]
[350713552,1738077068239,-4056.43,0.0001863,2]
[350713553,1738077068250,-1083.88,0.0001863,2]
[350713554,1738077068260,-3574.89,0.0001863,2]
[350713555,1738077068270,-672.80335394,0.0001863,2]
[350713556,1738077068280,-500.0,0.0001863,2]
[350713557,1738077068290,-3421.12,0.0001863,2]
[350713558,1738077068301,-1119.48,0.0001863,2]
[350713559,1738077068311,-4056.43,0.0001863,2]
[350713560,1738077068321,-1083.88,0.0001863,2]
[350713561,1738077068331,-3574.89,0.0001863,2]
[350713562,1738077068341,-500.0,0.0001863,2]
[350713563,1738077068351,-1119.48,0.0001863,2]
[350713564,1738077068361,-1083.88,0.0001863,2]
[350713565,1738077068372,-4056.43,0.0001863,2]
[350713566,1738077068383,-12864.06,0.0001863,2]
[350713567,1738077068393,-3574.89,0.0001863,2]
[350713568,1738077068404,-500.0,0.0001863,2]
[350713569,1738077068415,-3421.30977793,0.0001863,2]
[350713570,1738077068425,-1119.48,0.0001863,2]
[350713571,1738077068435,-1083.88,0.0001863,2]
[350713572,1738077068445,-4056.43,0.0001863,2]
[350713573,1738077068457,-3574.89,0.0001863,2]
[350713574,1738077068468,-12864.06,0.0001863,2]
[350713575,1738077068479,-1119.48,0.0001863,2]
[350713576,1738077068489,-500.0,0.0001863,2]
[350713577,1738077068499,-1083.88,0.0001863,2]
[350713578,1738077068510,-4056.43,0.0001863,2]
[350713579,1738077068520,-12864.06,0.0001863,2]
[350713580,1738077068530,-3574.89,0.0001863,2]
[350713581,1738077068540,-1219.56,0.0001863,2]
[350713582,1738077068549,-1119.48,0.0001863,2]
[350713583,1738077068559,-291.64098911,0.0001863,2]
[350713584,1738077068568,-1083.88,0.0001863,2]
[350713585,1738077068578,-4056.43,0.0001863,2]
[350713586,1738077068587,-1219.56,0.0001863,2]
[350713587,1738077068596,-12864.06,0.0001863,2]
[350713588,1738077068606,-1119.48,0.0001863,2]
[350713589,1738077068617,-3574.89,0.0001863,2]
[350713590,1738077068627,-4056.43,0.0001863,2]
[350713591,1738077068636,-1083.88,0.0001863,2]
[350713592,1738077068646,-1219.56,0.0001863,2]
[350713593,1738077068656,-12864.06,0.0001863,2]
[350713594,1738077068665,-3574.89,0.0001863,2]
[350713595,1738077068674,-1119.48,0.0001863,2]
[350713596,1738077068684,-4056.43,0.0001863,2]
[350713597,1738077068693,-1083.88,0.0001863,2]
[350713598,1738077068703,-1219.56,0.0001863,2]
[350713599,1738077068714,-12864.06,0.0001863,2]
[350713600,1738077068724,-3574.89,0.0001863,2]
[350713601,1738077068733,-1119.48,0.0001863,2]
[350713602,1738077068743,-4056.43,0.0001863,2]
[350713603,1738077068752,-1219.56,0.0001863,2]
[350713604,1738077068762,-1083.88,0.0001863,2]
[350713605,1738077068772,-12864.06,0.0001863,2]
[350713606,1738077068781,-1119.48,0.0001863,2]
[350713607,1738077068791,-4056.43,0.0001863,2]
[350713608,1738077068800,-1083.88,0.0001863,2]
[350713609,1738077068809,-3574.89,0.0001863,2]
[350713610,1738077068818,-1219.56,0.0001863,2]
[350713611,1738077068828,-12864.06,0.0001863,2]
[350713612,1738077068837,-1083.88,0.0001863,2]
[350713613,1738077068846,-3574.89,0.0001863,2]
[350713614,1738077068856,-4056.43,0.0001863,2]
[350713615,1738077068865,-500.0,0.0001863,2]
[350713616,1738077068874,-1219.56,0.0001863,2]
[350713617,1738077068884,-1119.48,0.0001863,2]
[350713618,1738077068893,-12864.06,0.0001863,2]
[350713619,1738077068903,-500.0,0.0001863,2]
[350713620,1738077068912,-4056.43,0.0001863,2]
[350713621,1738077068922,-1219.56,0.0001863,2]
[350713622,1738077068931,-3574.89,0.0001863,2]
[350713623,1738077068941,-1119.48,0.0001863,2]
[350713624,1738077068950,-12864.06,0.0001863,2]
[350713625,1738077068961,-500.0,0.0001863,2]
[350713626,1738077068970,-1083.88,0.0001863,2]
[350713627,1738077068979,-4056.43,0.0001863,2]
[350713628,1738077068988,-1219.56,0.0001863,2]
[350713629,1738077068997,-3575.01569591,0.0001863,2]
[350713630,1738077069007,-12864.06,0.0001863,2]
[350713631,1738077069016,-500.0,0.0001863,2]
[350713632,1738077069148,-500.0,0.0001863,2]
[350713633,1738077069158,-1083.88,0.0001863,2]
[350713634,1738077069168,-1219.56,0.0001863,2]
[350713635,1738077069178,-12864.06,0.0001863,2]
[350713636,1738077069187,-1119.48,0.0001863,2]
[350713637,1738077069197,-500.0,0.0001863,2]
[350713638,1738077069209,-500.0,0.0001863,2]
[350713639,1738077069220,-500.0,0.0001863,2]
[350713640,1738077069229,-1083.88,0.0001863,2]
[350713641,1738077069239,-1219.56,0.0001863,2]
[350713642,1738077069249,-4056.43,0.0001863,2]
[350713643,1738077069259,-12864.06,0.0001863,2]
[350713644,1738077069269,-500.0,0.0001863,2]
[350713645,1738077069279,-500.0,0.0001863,2]
[350713646,1738077069289,-1119.48,0.0001863,2]
[350713647,1738077069298,-500.0,0.0001863,2]
[350713648,1738077069308,-1219.56,0.0001863,2]
[350713649,1738077069317,-1083.88,0.0001863,2]
[350713650,1738077069327,-12864.20016937,0.0001863,2]
[350713651,1738077069337,-4056.56244102,0.0001863,2]
[350713652,1738077069346,-500.0,0.0001863,2]
[350713653,1738077069355,-500.0,0.0001863,2]
[350713654,1738077069364,-1119.48,0.0001863,2]
[350713655,1738077069374,-500.0,0.0001863,2]
[350713656,1738077069383,-1219.56,0.0001863,2]
[350713657,1738077069393,-1084.11018579,0.0001863,2]
[350713658,1738077069402,-500.0,0.0001863,2]
[350713659,1738077069411,-1119.71,0.0001863,2]
[350713660,1738077069421,-500.0,0.0001863,2]
[350713661,1738077069431,-1219.56,0.0001863,2]
[350713662,1738077069440,-500.0,0.0001863,2]
[350713663,1738077069449,-500.0,0.0001863,2]
[350713664,1738077069459,-1219.56,0.0001863,2]
[350713665,1738077069469,-1219.56,0.0001863,2]
[350713666,1738077069479,-257.94733729,0.0001863,2]
[350713667,1738077069489,-1219.56,0.0001863,2]
[350713668,1738077069498,-500.0,0.0001863,2]
[350713669,1738077069508,-151.0,0.0001863,2]
[350713670,1738077069517,-1219.56,0.0001863,2]
[350713671,1738077069527,-500.0,0.0001863,2]
[350713672,1738077069536,-151.0,0.0001863,2]
[350713673,1738077069545,-1219.56,0.0001863,2]
[350713674,1738077069555,-500.0,0.0001863,2]
[350713675,1738077069564,-1219.56,0.0001863,2]
[350713676,1738077069573,-151.0,0.0001863,2]
[350713677,1738077069582,-1219.56,0.0001863,2]
[350713678,1738077069592,-500.0,0.0001863,2]
[350713679,1738077069601,-246.16177286,0.0001863,2]
[350713680,1738077069610,-674.47,0.0001863,2]
[350713681,1738077069620,-151.0,0.0001863,2]
[350713682,1738077069629,-674.47,0.0001863,2]
[350713683,1738077069638,-151.0,0.0001863,2]
[350713684,1738077069648,-1219.56,0.0001863,2]
[350713685,1738077069657,-674.47,0.0001863,2]
[350713686,1738077069667,-500.0,0.0001863,2]
[350713687,1738077069676,-1219.56,0.0001863,2]
[350713688,1738077069686,-151.0,0.0001863,2]
[350713689,1738077069695,-674.47,0.0001863,2]
[350713690,1738077069704,-500.0,0.0001863,2]
[350713691,1738077069715,-1219.64966686,0.0001863,2]
[350713692,1738077069724,-674.47,0.0001863,2]
[350713693,1738077069734,-151.0,0.0001863,2]
[350713694,1738077069743,-500.0,0.0001863,2]
[350713695,1738077069753,-674.47,0.0001863,2]
[350713696,1738077069762,-500.0,0.0001863,2]
[350713697,1738077069772,-674.47,0.0001863,2]
[350713698,1738077069781,-151.0,0.0001863,2]
[350713699,1738077069791,-627.57,0.0001863,2]
[350713700,1738077069800,-500.0,0.0001863,2]
[350713701,1738077069810,-674.47,0.0001863,2]
[350713702,1738077069819,-500.0,0.0001863,2]
[350713703,1738077069829,-151.0,0.0001863,2]
[350713704,1738077069839,-674.47,0.0001863,2]
[350713705,1738077069849,-500.0,0.0001863,2]
[350713706,1738077069858,-627.57,0.0001863,2]
[350713707,1738077069867,-151.0,0.0001863,2]
[350713708,1738077069876,-500.0,0.0001863,2]
[350713709,1738077069886,-674.47,0.0001863,2]
[350713710,1738077069895,-627.57,0.0001863,2]
[350713711,1738077069904,-500.0,0.0001863,2]
[350713712,1738077069913,-151.0,0.0001863,2]
[350713713,1738077069923,-674.47,0.0001863,2]
[350713714,1738077069933,-627.57,0.0001863,2]
[350713715,1738077069943,-6938.77,0.0001863,2]
[350713716,1738077069952,-500.0,0.0001863,2]
[350713717,1738077069963,-674.47,0.0001863,2]
[350713718,1738077069973,-500.0,0.0001863,2]
[350713719,1738077069983,-151.0,0.0001863,2]
[350713720,1738077069993,-627.57,0.0001863,2]
[350713721,1738077070002,-500.0,0.0001863,2]
[350713722,1738077070012,-500.0,0.0001863,2]
[350713723,1738077070022,-151.0,0.0001863,2]
[350713724,1738077070033,-627.57,0.0001863,2]
[350713725,1738077070044,-674.47,0.0001863,2]
[350713726,1738077070054,-500.0,0.0001863,2]
[350713727,1738077070064,-252.72176879,0.0001863,2]
[350713728,1738077070608,1066.50691028,0.00011879,2]
[350713729,1738077070650,1066.50691028,0.00011832,2]
[350713730,1738077070687,1066.50691028,0.00011891,2]
[350713731,1738077070731,1066.50691028,0.00011829,2]
[350713732,1738077070873,1066.50691028,0.00011855,2]
[350713734,1738077078932,586.19673135,0.00011854,2]
[350713735,1738077078969,172.29,0.00010137,2]
[350713736,1738077079103,586.19673135,0.00011868,2]
[350713737,1738077079400,586.19673135,0.00011882,2]
[350713738,1738077079710,586.19673135,0.0001189,2]
[350713739,1738077080018,586.19673135,0.00011846,2]
[350713740,1738077088945,1529.24598461,0.00011836,2]
[350713741,1738077089235,1529.24598461,0.00011894,2]
[350713742,1738077089567,1529.24598461,0.00011901,2]
[350713743,1738077089866,1529.24598461,0.00011908,2]
[350713744,1738077090277,1529.24598461,0.00011894,2]
[350713745,1738077097448,200.0,0.00011911,2]
[350713746,1738077097755,200.0,0.000119,2]
[350713747,1738077107025,981.38867459,0.00011841,2]
[350713748,1738077107320,981.38867459,0.00011886,2]
[350713749,1738077107621,981.38867459,0.00011899,2]
[350713750,1738077107909,981.38867459,0.00011892,2]
[350713751,1738077108202,981.38867459,0.00011855,2]
[350713752,1738077123620,1225.30929464,0.00011849,2]
[350713753,1738077123917,1225.30929464,0.00011902,2]
[350713754,1738077124228,1225.30929464,0.00011849,2]
[350713755,1738077124523,1225.30929464,0.00011903,2]
[350713756,1738077124861,1225.30929464,0.0001189,2]
[350713757,1738077131348,2537.65938658,0.00011854,2]
[350713758,1738077131668,2537.65938658,0.00011849,2]
[350713759,1738077131984,2537.65938658,0.0001188,2]
[350713760,1738077132254,2537.65938658,0.00011867,2]
[350713761,1738077132616,2537.65938658,0.00011897,2]
[350713762,1738077140868,286.14144672,0.00011884,2]
[350713763,1738077140998,286.14144672,0.00011865,2]
[350713764,1738077141288,286.14144672,0.00011863,2]
[350713765,1738077141602,286.14144672,0.00011857,2]
[350713766,1738077141901,286.14144672,0.00011868,2]
[350713767,1738077301419,268.7,0.00017915,30]
[350713771,1738077929813,44724.81912332,0.00011,2]
[350713785,1738078146089,-250.58560952,0.00015706,2]
[350713801,1738078232019,-51.86439048,0.00015706,2]
[350713802,1738078232029,-1000.0,0.0001744,2]
[350713803,1738078232039,-300.0,0.00017585,2]
[350713804,1738078232049,-3488.63560952,0.00017586,2]
[350713805,1738078232061,-6694.28439048,0.00017586,2]
[350713806,1738078232071,-398.8,0.00017589,2]
[350713807,1738078232081,-164.06,0.00017649,2]
[350713808,1738078232091,-500.0,0.00017674,2]
[350713809,1738078232100,-315.0,0.00017867,2]
[350713810,1738078232109,-467.29,0.0001789,2]
[350713811,1738078232119,-150.0,0.00017899,2]
[350713812,1738078232129,-1645.19360952,0.000179,2]
[350713813,1738078232140,-104068.63016111,0.000179,2]
[350713814,1738078232151,-2689.62241,0.000179,2]
[350713815,1738078232165,-514.14013679,0.000179,2]
[350713816,1738078232256,-11556.02017621,0.000179,2]
[350713817,1738078232268,-442.79999998,0.000179,2]
[350713818,1738078232431,-17907.1218335,0.000179,2]
[350713827,1738078237780,-2772.852,0.000179,2]
[350713828,1738078237826,-315.52806877,0.000179,2]
[350713829,1738078237873,-1053.96538395,0.000179,2]
[350713830,1738078237885,-1033.22623936,0.000179,2]
[350713831,1738078237894,-4648.08081949,0.000179,2]
[350713832,1738078237906,-92495.40093552,0.000179,2]
[350713833,1738078237916,-302.45,0.00017969,2]
[350713834,1738078237925,-381.23,0.00018082,2]
[350713835,1738078237934,-438.16,0.000181,2]
[350713836,1738078237943,-150.0,0.000181,2]
[350713837,1738078237953,-983.29,0.000181,2]
[350713838,1738078237962,-150.0,0.000181,2]
[350713839,1738078237972,-438.16,0.000181,2]
[350713840,1738078237980,-150.0,0.000181,2]
[350713841,1738078237990,-983.29,0.000181,2]
[350713842,1738078237999,-150.0,0.000181,2]
[350713843,1738078238008,-150.0,0.0001813,2]
[350713844,1738078238017,-5609.1209,0.0001813,2]
[350713845,1738078238027,-1666.842,0.0001813,2]
[350713846,1738078238036,-669.5971,0.0001813,2]
[350713847,1738078238045,-5850.6733,0.00018229,2]
[350713848,1738078238055,-154.5928645,0.00018257,2]
[350713849,1738078238064,-996.52607701,0.00018333,2]
[350713850,1738078238074,-3000.0,0.0001844,2]
[350713851,1738078238083,-398.8,0.00018469,2]
[350713852,1738078238092,-500.0,0.00018481,2]
[350713853,1738078238102,-159.23294858,0.000185,2]
[350713854,1738078238110,-159.99336566,0.000185,2]
[350713855,1738078238120,-161.80746262,0.0001853,2]
[350713856,1738078238130,-518.7289,0.0001853,2]
[350713857,1738078238139,-5000.0,0.0001853,2]
[350713858,1738078238148,-266.2158,0.0001853,2]
[350713859,1738078238158,-606.0332,0.0001853,2]
[350713860,1738078238169,-2000.0,0.00018548,5]
[350713861,1738078238179,-993.446,0.00018548,2]
[350713862,1738078238188,-500.0,0.00018564,2]
[350713863,1738078238198,-408.42144047,0.00018573,2]
[350713864,1738078238207,-164.74214183,0.00018573,2]
[350713865,1738078238217,-151.82037447,0.00018573,2]
[350713866,1738078238226,-160.12407669,0.00018573,2]
[350713867,1738078238235,-500.0,0.00018573,2]
[350713868,1738078238244,-500.48827141,0.00018573,2]
[350713869,1738078238254,-467.29,0.0001859,2]
[350713870,1738078238263,-21863.9337311,0.000186,2]
[350713871,1738078238279,-33238.26582024,0.000186,2]
[350713872,1738078238294,-104999.99999998,0.000186,2]
[350713873,1738078238305,-1525.18868393,0.000186,2]
[350713874,1738078238320,-70839.63207909,0.000186,2]
[350713875,1738078238331,-252.19,0.000186,2]
[350713876,1738078238342,-3004.15838211,0.000186,2]
[350714020,1738078239947,-1215.03383588,0.000186,2]
[350714021,1738078239959,-1548.0,0.000186,2]
[350714024,1738078240023,-2635.29659524,0.000186,2]
[350714025,1738078240036,-796.62350001,0.000186,2]
[350714026,1738078240048,-862.57989999,0.000186,2]
[350714027,1738078240059,-515.3,0.000186,2]
[350714028,1738078240071,-1942.37721319,0.000186,2]
[350714029,1738078240086,-912399.94060887,0.000186,2]
[350714030,1738078240097,-231.0,0.000186,2]
[350714031,1738078240107,-811.2959,0.000186,2]
[350714032,1738078240117,-366.0,0.000186,2]
[350714033,1738078240126,-1123.3188,0.000186,2]
[350714034,1738078240136,-400.0,0.000186,6]
[350714035,1738078240145,-3365.3766383,0.00018619,2]
[350714036,1738078240158,-217.6803799,0.00018619,2]
[350714037,1738078240169,-150.0,0.0001863,2]
[350714038,1738078240179,-150.0,0.0001863,2]
[350714039,1738078240188,-150.0,0.0001863,2]
[350714040,1738078240198,-150.0,0.0001863,2]
[350714041,1738078240208,-150.0,0.0001863,2]
[350714042,1738078240217,-112139.49360126,0.0001863,2]
[350714043,1738078240226,-734.87928138,0.0001863,2]
[350714044,1738078240236,-11302.30217017,0.0001863,2]
[350714045,1738078240246,-5499.9822218,0.0001863,2]
[350714046,1738078240256,-8024.05456009,0.0001863,2]
[350714047,1738078240265,-150.0,0.0001863,2]
[350714048,1738078240276,-500.0,0.0001863,2]
[350714049,1738078240286,-590.53,0.0001863,2]
[350714050,1738078240296,-502.40906283,0.0001863,2]